Cogmind - Beta 12 @@@ ROGUE MODE // 2023.03.26 @ 02:10:09 Player: Rainynight Result: Destroyed by S-27 Virus with Autogun Performance ------------- Evolutions (4) 2000 Regions Visited (9) 1800 Robots Destroyed (0) 0 Value Destroyed (0) 0 Prototype IDs (0) 0 Alien Tech Used (0) 0 Bonus (-2885) -2885 TOTAL SCORE: 915 Bonus ------- Devolution -15000 Fragile Parts 1000 No Salvage 1000 Pure Core 2000 Scavenger 4000 Simple Hacker 1519 Trapped 750 Pacifist 1325 Follower Combat Kills 21 Entered DSFs 500 Cogmind --------- Core Integrity 0/800 Matter 300/300 Energy 99/100 System Corruption 2% Temperature Cool (0) Movement Core (50) Location -6/Lower Caves Parts ------- > --- POWER (1) -------- (None) > --- PROPULSION (4) --- (None) > --- UTILITY (4) ------ (None) > --- WEAPON (7) ------- (None) > --- INVENTORY (0) ---- (None) Peak State ------------ None Favorites ----------- Power None Propulsion None Utility None Weapon None Build | -11 -10 -9 -9 -8 -7 -7 -6 -6 -6 ------- Run | Jun Mat Mat Min Mat Fac DSF Fac Low Low Slots Evolved -4 | . . -1 . -1 -1 . -1 . . Power . | . . . . . . . . . . Propulsion -2 | . . . . -1 -1 . . . . Utility -2 | . . -1 . . . . -1 . . Weapon . | . . . . . . . . . . Parts Attached . | . . . . . . . . . . Power . | . . . . . . . . . . Engine . | . . . . . . . . . . Core . | . . . . . . . . . . Reactor . | . . . . . . . . . . Propulsion . | . . . . . . . . . . Treads . | . . . . . . . . . . Leg . | . . . . . . . . . . Wheel . | . . . . . . . . . . Hover . | . . . . . . . . . . Flight . | . . . . . . . . . . Utility . | . . . . . . . . . . Device . | . . . . . . . . . . Storage . | . . . . . . . . . . Processor . | . . . . . . . . . . Hackware . | . . . . . . . . . . Protection . | . . . . . . . . . . Artifact . | . . . . . . . . . . Weapon . | . . . . . . . . . . Energy Gun . | . . . . . . . . . . Energy Cannon . | . . . . . . . . . . Ballistic Gun . | . . . . . . . . . . Ballistic Cannon . | . . . . . . . . . . Launcher . | . . . . . . . . . . Special Weapon . | . . . . . . . . . . Impact Weapon . | . . . . . . . . . . Slashing Weapon . | . . . . . . . . . . Piercing Weapon . | . . . . . . . . . . Special Melee Weapon . | . . . . . . . . . . Unidentified Prototypes . | . . . . . . . . . . Parts Lost . | . . . . . . . . . . Power . | . . . . . . . . . . Propulsion . | . . . . . . . . . . Utility . | . . . . . . . . . . Weapon . | . . . . . . . . . . Highest Loss Streak . | . . . . . . . . . . To Critical Strikes . | . . . . . . . . . . Average Slot Usage (%) . | . . . . . . . . . . Naked Turns 549 | . 45 18 138 100 8 41 9 140 50 Heaviest Build . | . . . . . . . . . . Greatest Support 3 | 3 3 3 3 3 3 3 3 3 3 Greatest Overweight (x) . | . . . . . . . . . . Average Overweight (x) . | . . . . . . . . . . Largest Inventory Capacity . | . . . . . . . . . . Average Capacity . | . . . . . . . . . . Most Carried . | . . . . . . . . . . Average Carried . | . . . . . . . . . . Final Capacity . | . . . . . . . . . . Final Carried . | . . . . . . . . . . Class Distribution -------------------- 100% | Mutant Dominant Class ---------------- Mutant | -10/Materials Mutant | -9/Materials Mutant | -9/Mines Mutant | -8/Materials Mutant | -7/Factory Mutant | -7/DSF Mutant | -6/Factory Mutant | -6/Lower Caves Mutant | -6/Lower Caves Resources | -11 -10 -9 -9 -8 -7 -7 -6 -6 -6 ----------- Run | Jun Mat Mat Min Mat Fac DSF Fac Low Low Matter Collected 164 | 30 . . 134 . . . . . . Remotely . | . . . . . . . . . . Salvage Created . | . . . . . . . . . . Parts . | . . . . . . . . . . Haulers Intercepted . | . . . . . . . . . . Recyclers Shooed . | . . . . . . . . . . Parts Field Recycled . | . . . . . . . . . . Retrieved Matter . | . . . . . . . . . . Parts Self-Destructed . | . . . . . . . . . . Prevented . | . . . . . . . . . . Kills | -11 -10 -9 -9 -8 -7 -7 -6 -6 -6 ------- Run | Jun Mat Mat Min Mat Fac DSF Fac Low Low Combat Hostiles Destroyed . | . . . . . . . . . . Classes Destroyed . | . . . . . . . . . . Best Kill Streak . | . . . . . . . . . . Combat Bots Only . | . . . . . . . . . . Max Kills in Single Turn . | . . . . . . . . . . Gunslinging . | . . . . . . . . . . Exploded . | . . . . . . . . . . Melee . | . . . . . . . . . . Uniques/NPCs Destroyed . | . . . . . . . . . . Combat | -11 -10 -9 -9 -8 -7 -7 -6 -6 -6 -------- Run | Jun Mat Mat Min Mat Fac DSF Fac Low Low Damage Taken 1327 | . . 82 59 376 . . . 550 260 Core 1327 | . . 82 59 376 . . . 550 260 Absorbed by Shields . | . . . . . . . . . . Core Remaining (%) 87 | 100 100 . 82 53 . 100 . . . Volleys Fired . | . . . . . . . . . . Largest . | . . . . . . . . . . Hottest . | . . . . . . . . . . Shots Fired . | . . . . . . . . . . Gun . | . . . . . . . . . . Cannon . | . . . . . . . . . . Launcher . | . . . . . . . . . . Special . | . . . . . . . . . . Kinetic . | . . . . . . . . . . Thermal . | . . . . . . . . . . Explosive . | . . . . . . . . . . Electromagnetic . | . . . . . . . . . . Robot Hit Streak . | . . . . . . . . . . Robot Miss Streak . | . . . . . . . . . . Penetration Max . | . . . . . . . . . . Secondary Targets . | . . . . . . . . . . Shots Hit Robots . | . . . . . . . . . . Core Hits 2 | . . . 1 1 . . . . . Critical Kills . | . . . . . . . . . . Critical Parts Destroyed . | . . . . . . . . . . Critical Strikes . | . . . . . . . . . . Melee Attacks . | . . . . . . . . . . Impact . | . . . . . . . . . . Slashing . | . . . . . . . . . . Piercing . | . . . . . . . . . . Sneak Attacks . | . . . . . . . . . . Combat Hostiles . | . . . . . . . . . . Follow-up Attacks . | . . . . . . . . . . Damage Inflicted 65 | . . . 49 16 . . . . . Guns . | . . . . . . . . . . Cannons . | . . . . . . . . . . Explosions . | . . . . . . . . . . Melee . | . . . . . . . . . . Ramming 65 | . . . 49 16 . . . . . Kinetic . | . . . . . . . . . . Thermal . | . . . . . . . . . . Explosive . | . . . . . . . . . . Electromagnetic . | . . . . . . . . . . Impact . | . . . . . . . . . . Slashing . | . . . . . . . . . . Piercing . | . . . . . . . . . . Highest Corruption 2 | . . . 2 . . . . 2 2 Average Corruption 1 | . . . 2 . . . . 1 2 Corruption Purged . | . . . . . . . . . . Corruption Blocked . | . . . . . . . . . . Overload Shots . | . . . . . . . . . . Overflow Damage 1 | . . . 1 . . . . . . Projectiles . | . . . . . . . . . . Explosions . | . . . . . . . . . . Melee 1 | . . . 1 . . . . . . Knockbacks 1 | . . . 1 . . . . . . Impact 1 | . . . 1 . . . . . . Kinetic . | . . . . . . . . . . Secondary . | . . . . . . . . . . Self-Inflicted Damage 30 | . . . 22 8 . . . . . Shots . | . . . . . . . . . . Rammed 16 | . . . 12 4 . . . . . Targets Rammed 16 | . . . 12 4 . . . . . Kicked . | . . . . . . . . . . Crushed . | . . . . . . . . . . Highest Temperature 7 | . . . . 7 . . . . . Average Temperature 7 | . . . . 7 . . . . . Received Heat Transfer 246 | . . 18 21 162 . . . . 45 Siege Activations . | . . . . . . . . . . Robots Corrupted . | . . . . . . . . . . Combat Hostiles . | . . . . . . . . . . Parts Fried . | . . . . . . . . . . Impact Corruptions 1 | . . . 1 . . . . . . Robots Melted . | . . . . . . . . . . Combat Hostiles . | . . . . . . . . . . Parts Melted . | . . . . . . . . . . Heat Transferred . | . . . . . . . . . . Parts Sabotaged . | . . . . . . . . . . Parts Stolen . | . . . . . . . . . . Parts Stripped . | . . . . . . . . . . Power Chain Reactions . | . . . . . . . . . . Missiles Intercepted . | . . . . . . . . . . Alert | -11 -10 -9 -9 -8 -7 -7 -6 -6 -6 ------- Run | Jun Mat Mat Min Mat Fac DSF Fac Low Low Peak Influence 88 | . 15 20 88 55 24 31 16 . . Initial 24 | . . 5 7 10 24 16 16 . . Average 39 | . 12 9 59 44 24 18 16 . . Maximum Alert Level . | . . . . . . . . . . Low Security (%) 100 | 100 100 100 100 100 100 100 100 . . Level 1 . | . . . . . . . . . . Level 2 . | . . . . . . . . . . Level 3 . | . . . . . . . . . . Level 4 . | . . . . . . . . . . Level 5 . | . . . . . . . . . . High Security . | . . . . . . . . . . Max Security . | . . . . . . . . . . Squads Dispatched 6 | . 3 . . 3 . . . . . Investigation 3 | . 2 . . 1 . . . . . Extermination . | . . . . . . . . . . Reinforcement 3 | . 1 . . 2 . . . . . Assault . | . . . . . . . . . . Garrison . | . . . . . . . . . . Intercept . | . . . . . . . . . . Searches Triggered . | . . . . . . . . . . Construction Impeded . | . . . . . . . . . . Haulers Reinforced . | . . . . . . . . . . Active Scanning Responses . | . . . . . . . . . . Cargo Convoy Interrupts . | . . . . . . . . . . Stealth | -11 -10 -9 -9 -8 -7 -7 -6 -6 -6 --------- Run | Jun Mat Mat Min Mat Fac DSF Fac Low Low Distress Signals . | . . . . . . . . . . Communications Jammed . | . . . . . . . . . . Distress Signals . | . . . . . . . . . . Times Spotted 41 | . 3 4 6 14 . . . 8 6 Peak Tracking Total 12 | . 6 4 3 12 . 1 . 5 6 Tactical Retreats 4 | . . . . . . 1 . 2 1 Traps | -11 -10 -9 -9 -8 -7 -7 -6 -6 -6 ------- Run | Jun Mat Mat Min Mat Fac DSF Fac Low Low Traps Triggered 5 | . 2 . . 2 . 1 . . . Indirectly . | . . . . . . . . . . Trap Hack Attempts . | . . . . . . . . . . Triggered . | . . . . . . . . . . Disarmed . | . . . . . . . . . . Reprogrammed . | . . . . . . . . . . Reused . | . . . . . . . . . . Traps Extracted . | . . . . . . . . . . Installed . | . . . . . . . . . . Triggered 2 | . . . . . . . . 2 . Machines | -11 -10 -9 -9 -8 -7 -7 -6 -6 -6 ---------- Run | Jun Mat Mat Min Mat Fac DSF Fac Low Low Machines Disabled . | . . . . . . . . . . Max in Single Turn . | . . . . . . . . . . Machines Repaired . | . . . . . . . . . . Machines Sabotaged . | . . . . . . . . . . Overloaded Fab Kills . | . . . . . . . . . . Hacking | -11 -10 -9 -9 -8 -7 -7 -6 -6 -6 --------- Run | Jun Mat Mat Min Mat Fac DSF Fac Low Low Machines Accessed 1 | . . . . . 1 . . . . Terminals 1 | . . . . . 1 . . . . Fabricators . | . . . . . . . . . . Repair Stations . | . . . . . . . . . . Recycling Units . | . . . . . . . . . . Scanalyzers . | . . . . . . . . . . Garrison Access . | . . . . . . . . . . Total Hacks 3 | . . . . . 3 . . . . Successful 1 | . . . . . 1 . . . . Failed 2 | . . . . . 2 . . . . Catastrophic . | . . . . . . . . . . Database Lockouts . | . . . . . . . . . . Manual . | . . . . . . . . . . Terminals 3 | . . . . . 3 . . . . Fabricators . | . . . . . . . . . . Repair Stations . | . . . . . . . . . . Recycling Units . | . . . . . . . . . . Scanalyzers . | . . . . . . . . . . Garrison Access . | . . . . . . . . . . Terminal Hacks 1 | . . . . . 1 . . . . Open DSF 1 | . . . . . 1 . . . . Fabricator Hacks . | . . . . . . . . . . Repair Station Hacks . | . . . . . . . . . . Recycling Unit Hacks . | . . . . . . . . . . Scanalyzer . | . . . . . . . . . . Garrison Access Hacks . | . . . . . . . . . . Unauthorized Hacks . | . . . . . . . . . . Terminals . | . . . . . . . . . . Fabricators . | . . . . . . . . . . Repair Stations . | . . . . . . . . . . Recycling Units . | . . . . . . . . . . Scanalyzers . | . . . . . . . . . . Garrison Access . | . . . . . . . . . . Data Cores Recovered . | . . . . . . . . . . Used . | . . . . . . . . . . Hacking Detections . | . . . . . . . . . . Full Trace Events . | . . . . . . . . . . Feedback Events . | . . . . . . . . . . Feedback Blocked . | . . . . . . . . . . Robot Schematics Acquired . | . . . . . . . . . . Robots Built . | . . . . . . . . . . Authchips . | . . . . . . . . . . Time . | . . . . . . . . . . Total Robot Build Rating . | . . . . . . . . . . Part Schematics Acquired . | . . . . . . . . . . Parts Built . | . . . . . . . . . . Authchips . | . . . . . . . . . . Time . | . . . . . . . . . . Total Part Build Rating . | . . . . . . . . . . Parts Repaired . | . . . . . . . . . . Time . | . . . . . . . . . . Parts Recycled . | . . . . . . . . . . Recycled Matter . | . . . . . . . . . . Retrieved Matter . | . . . . . . . . . . Retrieved Components . | . . . . . . . . . . Parts Scanalyzed . | . . . . . . . . . . Part Schematics Acquired . | . . . . . . . . . . Parts Damaged . | . . . . . . . . . . Bothacking | -11 -10 -9 -9 -8 -7 -7 -6 -6 -6 ------------ Run | Jun Mat Mat Min Mat Fac DSF Fac Low Low Used RIF Installer . | . . . . . . . . . . Robots Hacked . | . . . . . . . . . . Non-combat . | . . . . . . . . . . Combat . | . . . . . . . . . . Robot Hacks Applied . | . . . . . . . . . . Relay Couplers Released . | . . . . . . . . . . Fabnet Peak Effective % . | . . . . . . . . . . Robots Rewired . | . . . . . . . . . . Allies Hacked . | . . . . . . . . . . Hacks Repelled . | . . . . . . . . . . Allies | -11 -10 -9 -9 -8 -7 -7 -6 -6 -6 -------- Run | Jun Mat Mat Min Mat Fac DSF Fac Low Low Total Allies 3 | . . . 3 . . . . . . Largest Group 3 | . . . 3 . . . . . . Highest-Rated Group 40 | . . . 40 . . . . . . Highest-Rated Ally 16 | . . . 16 . . . . . . Total Orders . | . . . . . . . . . . Ally Attacks 14 | . . . 14 . . . . . . Total Damage 169 | . . . 169 . . . . . . Kills 3 | . . . 3 . . . . . . Allies Corrupted . | . . . . . . . . . . Allies Melted . | . . . . . . . . . . Intel | -11 -10 -9 -9 -8 -7 -7 -6 -6 -6 ------- Run | Jun Mat Mat Min Mat Fac DSF Fac Low Low Robot Analysis Total . | . . . . . . . . . . Derelict Logs Recovered . | . . . . . . . . . . Drone Launches . | . . . . . . . . . . Drone Recoveries . | . . . . . . . . . . Exploration | -11 -10 -9 -9 -8 -7 -7 -6 -6 -6 ------------- Run | Jun Mat Mat Min Mat Fac DSF Fac Low Low Turns Passed 559 | 10 45 18 138 100 8 41 9 140 50 Spaces Moved 976 | 20 89 36 192 189 16 49 17 271 97 Core 976 | 20 89 36 192 189 16 49 17 271 97 Treads . | . . . . . . . . . . Legs . | . . . . . . . . . . Wheels . | . . . . . . . . . . Hover . | . . . . . . . . . . Flight . | . . . . . . . . . . Fastest Speed 50 | 50 50 50 50 50 50 50 50 50 50 Average Speed 50 | 50 50 50 50 50 50 50 50 50 50 Slowest Speed 50 | 50 50 50 50 50 50 50 50 50 50 Overloaded Moves . | . . . . . . . . . . Propulsion Burnouts . | . . . . . . . . . . Robots Hopped . | . . . . . . . . . . Cave-ins Triggered . | . . . . . . . . . . Exploration Rate (%) 23 | 3 25 8 34 25 1 43 . 53 20 Regions Visited 9 Branch Regions 3 Pre-discovered Areas . | . . . . . . . . . . Known Exits Taken 1 | . . . . . 1 . . . . Unknown Exits Taken 7 | 1 1 1 1 1 . . 1 1 . Scrap Searched 2 | . . . 2 . . . . . . Spaces Dug . | . . . . . . . . . . Terrain Destroyed . | . . . . . . . . . . Melee . | . . . . . . . . . . Projectile . | . . . . . . . . . . AOE . | . . . . . . . . . . Terrain Rammed . | . . . . . . . . . . Walls Destroyed . | . . . . . . . . . . Machines Disabled . | . . . . . . . . . . Actions | -11 -10 -9 -9 -8 -7 -7 -6 -6 -6 --------- Run | Jun Mat Mat Min Mat Fac DSF Fac Low Low Total 1035 | 19 88 35 233 193 15 64 16 274 98 Wait 37 | . . . 30 1 . 1 . 4 1 Move 967 | 19 88 35 191 188 15 48 16 270 97 Hop . | . . . . . . . . . . Pick Up . | . . . . . . . . . . Fast Attach . | . . . . . . . . . . Attach . | . . . . . . . . . . Detach . | . . . . . . . . . . Swap . | . . . . . . . . . . Drop . | . . . . . . . . . . Fire . | . . . . . . . . . . Melee . | . . . . . . . . . . Ram 16 | . . . 12 4 . . . . . Kick . | . . . . . . . . . . Crush . | . . . . . . . . . . Escape Stasis 15 | . . . . . . 15 . . . Rewire . | . . . . . . . . . . Trap . | . . . . . . . . . . Miscellaneous . | . . . . . . . . . . Route ------- -11/Junkyard -10/Materials -9/Materials -9/Mines -8/Materials -7/Factory -7/DSF -6/Factory (discovered 2 exits: [*Fac] / [*Low]) -6/Lower Caves -6/Lower Caves History --------- Turn | Location | Event 5 | -11/Junkyard | Discovered new exit (range 12) 11 | -11/Junkyard | Entered Materials 52 | -10/Materials | Discovered new exit (range 8) 56 | -10/Materials | Entered another Materials area 56 | -9/Materials | Devolved, losing 1 slot: Utility x-1 67 | -9/Materials | Discovered new exit (range 16) 74 | -9/Materials | Entered Mines 89 | -9/Mines | Assisted by bots powering up and referring to "LRC-V3" 199 | -9/Mines | Discovered new exit (range 4) 200 | -9/Mines | Met a Derelict bent on vengeance 212 | -9/Mines | Entered Materials 212 | -8/Materials | Devolved, losing 1 slot: Propulsion x-1 305 | -8/Materials | Build established: Mutant 305 | -8/Materials | Discovered new exit (range 13) 312 | -8/Materials | Entered Factory 312 | -7/Factory | Devolved, losing 1 slot: Propulsion x-1 319 | -7/Factory | Identified exit to DSF 320 | -7/Factory | Entered DSF 340 | -7/DSF | Discovered new exit (range 11) 353 | -7/DSF | Additional patrols routed to DSF 361 | -7/DSF | Entered Factory 361 | -6/Factory | Devolved, losing 1 slot: Utility x-1 361 | -6/Factory | Discovered new exit (range 6) 362 | -6/Factory | Discovered new exit (range 15) 370 | -6/Factory | Entered Lower Caves 406 | -6/Lower Caves | Spotted B-75 Beast 494 | -6/Lower Caves | Core integrity fell below 50% 506 | -6/Lower Caves | Discovered new exit (range 9) 510 | -6/Lower Caves | Entered another Lower Caves area 547 | -6/Lower Caves | Core integrity fell below 20% 560 | -6/Lower Caves | Destroyed by S-27 Virus with Autogun Last Messages --------------- WARNING=DEVOLVING RESULTS=-1xUTILITY LOCATION=UNKNOWN GOAL=ESCAPE 00361_ EXIT=FOUND LOCATION=UNKNOWN GOAL=ESCAPE 00382_ QN-I2H(k) destroyed. 00499_ S-27 Virus misfires. 00499_ S-27 Virus destroyed. 00506_ EXIT=FOUND LOCATION=UNKNOWN GOAL=ESCAPE 00530_ M-22 Extractor reprogrammed Dirty Bomb Trap. 00543_ M-22 Extractor extracted Fire Trap. 00544_ C-30 ARC bursts open, deploying its payload. 00544_ S-27 Virus unfolds itself. 00546_ M-22 Extractor extracted Fire Trap. 00552_ M-22 Extractor extracted Dirty Bomb Trap. 00554_ M-22 Extractor extracted Fire Trap. Map ----- +----------------------------------------------------+ | | | ?????????????????????????????????????????????????? | | ?????????????????????????????????????????????????? | | ?????????????????????????????????????????????????? | | ?????????????????????????????????????????????????? | | ?????????????????????????????????????????????????? | | ?????????????????????????????????????????????????? | | ?????????????????????????????????????????????????? | | ?????????????????????????????????????????????????? | | ?????????????????????????????????????????????????? | | ?????????????????????????????????????????????????? | | ?????????????????????????????????????????????????? | | ?????????????????????????????????????????????????? | | ?????????????????????????????????????????????????? | | ?????????????????????????????????????????????????? | | ???????????????????????????????????##????????????? | | ??????????############????????????## #??????????## | | ??????????# #?######???#?# ##???????# | | ???????????# ### ??? #??# #?????## | | ????????????# ss ## ## ##???# ##????# | | ????????????### ## # ???### ###### | | ??????????????# ### ## ## ## #?? | | ????????####??# ##### # # ? ?? ## ##? | | ????????# ### ##?## # # # ## ## | | ????????# ##?# #?# # | | ????????### #####@ # #??## | | ??????????#### ##?# #??## | | ?????????????# #?## ####?## ## | | ??????????#### ##?? ####### ### | | ?????????## #?? ## #?# | | ????????## #?? ## #?# | | ???????## ### ## ### #?# | | ??????## ## #?# #?## | | ??????# ## ### ####??## | | ??# ### %######### ## #???#### | | ??#"%" ## ## | | ??#### #?## | | ?????### # ########## ##??## | | ???????## ##### #???????## ##????# | | ????????# #????# ######### #?????# | | ????????###?????# #?????# | | ????????????????############# #?????# | | ????????????????????????????# #????## | | ????????????????????????????# # ## ???? | | ????????????????????????????## ## #?# ?????? | | ?????????????????????????????####? #??# ?????? | | ??????????????????????????????????? #????? ??????? | | ??????????????????????????????????? ????????????? | | ???????????????????????????????????? ???????????? | | ?????????????????????????????????????#???????????? | +----------------------------------------------------+ Best States ------------- Heat Dissipation 20 Energy Generation 5 Energy Capacity 100 Matter Stores 300 Matter Capacity 300 Sight Range 16 Terrain Scan Density 10 Evasion (%) 50 Item Schematics ----------------- None Robot Schematics ------------------ None Fabricated ------------ Nothing Alien Tech Used ----------------- None Achievements -------------- None Challenges ------------ Devolution Fragile Parts No Salvage Pure Core Scavenger Simple Hacker Trapped Game ------ Seed AnalysisSlugClaws Manual? 0 Play Time 00:07:03 Cumulative 278.7 hours Start 2023.03.26 @ 02:03:45 End 2023.03.26 @ 02:10:09 Sessions 1 Manual Loads 0 Difficulty Rogue Special Mode None Game No. 250 Rogue 233 Adventurer 1 Explorer 16 Win Type - Total 16 Types 13/1/0/2/0/0/0/0/0 Lore% 74 Gallery% 80 Achievement% 72 Wizard Run 0 Options --------- ASCII 1 Keyboard 1 Movement Numpad Keybinds 1 Fullscreen 1 Font 18/X11 Map View 76x50 Tactical HUD 1 Map Filters NONE Filters NONE Steam 1 RUN: 19b1e3e3-fbab-4082-9574-b9643aa5b42b